fUSD/lending_fUSD_20240821
["ID","MTS","AMOUNT","RATE_DAILY","PERIOD"]
[335425495,1724221841120,-1033.63,0.00016487,5]
[335425496,1724221841128,-1347.23,0.00016487,5]
[335425497,1724221841137,-1347.23,0.00016487,5]
[335425498,1724221841147,-500.0,0.00016487,5]
[335425499,1724221841156,-500.0,0.00016487,5]
[335425500,1724221841166,-1779.64,0.00016487,5]
[335425501,1724221841175,-1779.64,0.00016487,5]
[335425502,1724221841185,-1442.4,0.00016487,5]
[335425503,1724221841194,-1442.4,0.00016487,5]
[335425504,1724221841204,-840.87,0.00016487,5]
[335425505,1724221841214,-840.87,0.00016487,5]
[335425506,1724221841224,-500.0,0.00016487,5]
[335425507,1724221841234,-500.0,0.00016487,5]
[335425508,1724221841248,-713.76,0.00016487,5]
[335425509,1724221841258,-713.76,0.00016487,5]
[335425510,1724221841267,-1186.56,0.00016487,5]
[335425511,1724221841276,-1186.56,0.00016487,5]
[335425512,1724221841286,-2952.613592,0.00016487,2]
[335425513,1724221841295,-2952.613592,0.00016487,2]
[335425514,1724221841305,-2952.613592,0.00016487,2]
[335425515,1724221841314,-2952.613592,0.00016487,2]
[335425516,1724221841325,-2952.613592,0.00016487,2]
[335425517,1724221841335,-2952.613592,0.00016487,2]
[335425518,1724221841344,-500.0,0.00016487,5]
[335425519,1724221841354,-500.0,0.00016487,5]
[335425520,1724221841363,-500.0,0.00016487,5]
[335425521,1724221841372,-500.0,0.00016487,5]
[335425522,1724221841381,-238.471029,0.00016487,2]
[335425523,1724221841390,-238.471029,0.00016487,2]
[335425524,1724221841400,-238.471029,0.00016487,2]
[335425525,1724221841409,-2268.589239,0.00016487,2]
[335425526,1724221841419,-2268.589239,0.00016487,2]
[335425527,1724221841428,-2268.589239,0.00016487,2]
[335425528,1724221841438,-835.96,0.00016487,5]
[335425529,1724221841447,-835.96,0.00016487,5]
[335425530,1724221841457,-238.471029,0.00016487,2]
[335425531,1724221841466,-238.471029,0.00016487,2]
[335425532,1724221841476,-500.0,0.00016487,5]
[335425533,1724221841485,-238.471029,0.00016487,2]
[335425534,1724221841494,-500.0,0.00016487,5]
[335425535,1724221841505,-2268.589239,0.00016487,2]
[335425536,1724221841514,-2268.589239,0.00016487,2]
[335425537,1724221841523,-2268.589239,0.00016487,2]
[335425538,1724221841534,-1064.01,0.00016487,5]
[335425539,1724221841543,-1064.01,0.00016487,5]
[335425540,1724221841553,-10000.0,0.00016487,2]
[335425541,1724221841565,-151.0,0.00016487,2]
[335425542,1724221841575,-10000.0,0.00016487,2]
[335425543,1724221841584,-1301.52,0.00016487,5]
[335425544,1724221841594,-10000.0,0.00016487,2]
[335425545,1724221841603,-151.0,0.00016487,2]
[335425546,1724221841613,-1301.52,0.00016487,5]
[335425547,1724221841624,-10000.0,0.00016487,2]
[335425548,1724221841633,-10000.0,0.00016487,2]
[335425549,1724221841643,-10000.0,0.00016487,2]
[335425550,1724221841653,-500.0,0.00016487,5]
[335425551,1724221841664,-519.22895373,0.00016487,5]
[335425552,1724221841674,-7286.85153566,0.00016487,2]
[335425553,1724221842088,-967.56,0.00016483,5]
[335425554,1724221842097,-226.295,0.00016487,2]
[335425555,1724221842112,-1341.24198333,0.00016487,2]
[335425566,1724221843375,-155.0,0.00013688,2]
[335425567,1724221843385,-535.67756998,0.00016482,5]
[335425568,1724221843394,-1145.61148101,0.00016487,2]
[335425569,1724221843403,-1781.713894,0.00016487,2]
[335425575,1724221843456,-301.616,0.00016487,2]
[335425584,1724221844161,-4007.49939115,0.00016487,2]
[335425585,1724221844171,-1273.32780051,0.00016487,2]
[335425586,1724221844182,-840.64392545,0.00016487,2]
[335425587,1724221844193,-1795.19898889,0.00016487,2]
[335425588,1724221844203,-10000.0,0.00016487,2]
[335425589,1724221844212,-151.0,0.00016487,2]
[335425590,1724221844221,-151.0,0.00016487,2]
[335425591,1724221844231,-500.0,0.00016487,5]
[335425592,1724221844240,-500.0,0.00016487,5]
[335425593,1724221844252,-711.0,0.00016487,5]
[335425594,1724221844263,-711.0,0.00016487,5]
[335425595,1724221844272,-1638.12,0.00016487,5]
[335425596,1724221844281,-1638.12,0.00016487,5]
[335425597,1724221844290,-2912.65,0.00016487,5]
[335425598,1724221844301,-2912.65,0.00016487,5]
[335425599,1724221844310,-196.381651,0.00016487,2]
[335425600,1724221844319,-196.381651,0.00016487,2]
[335425601,1724221844329,-151.0,0.00016487,2]
[335425602,1724221844339,-151.0,0.00016487,2]
[335425603,1724221844348,-196.381651,0.00016487,2]
[335425604,1724221844357,-196.381651,0.00016487,2]
[335425605,1724221844367,-1097.05,0.00016487,5]
[335425606,1724221844376,-1097.05,0.00016487,5]
[335425607,1724221844385,-1155.55,0.00016487,5]
[335425608,1724221844394,-1155.55,0.00016487,5]
[335425609,1724221844403,-500.0,0.00016487,5]
[335425610,1724221844413,-500.0,0.00016487,5]
[335425611,1724221844422,-1142.86,0.00016487,5]
[335425612,1724221844431,-1142.86,0.00016487,5]
[335425613,1724221844440,-500.0,0.00016487,5]
[335425614,1724221844449,-1273.13,0.00016487,5]
[335425615,1724221844458,-500.0,0.00016487,5]
[335425616,1724221844467,-1273.13,0.00016487,5]
[335425617,1724221844476,-1533.86,0.00016487,5]
[335425618,1724221844486,-500.0,0.00016487,5]
[335425619,1724221844495,-1533.86,0.00016487,5]
[335425620,1724221844504,-500.0,0.00016487,5]
[335425621,1724221844514,-500.0,0.00016487,5]
[335425622,1724221844523,-500.0,0.00016487,5]
[335425623,1724221844532,-500.0,0.00016487,5]
[335425624,1724221844541,-500.0,0.00016487,5]
[335425625,1724221844551,-640.22,0.00016487,2]
[335425626,1724221844560,-500.0,0.00016487,5]
[335425627,1724221844569,-500.0,0.00016487,5]
[335425628,1724221844578,-2008.56,0.00016487,5]
[335425629,1724221844587,-2008.56,0.00016487,5]
[335425630,1724221844596,-646.06,0.00016487,5]
[335425631,1724221844606,-646.06,0.00016487,5]
[335425632,1724221844615,-915.82,0.00016487,5]
[335425633,1724221844624,-915.82,0.00016487,5]
[335425634,1724221844633,-780.24,0.00016487,5]
[335425635,1724221844642,-780.24,0.00016487,5]
[335425636,1724221844651,-967.56,0.00016487,5]
[335425637,1724221844660,-967.56,0.00016487,5]
[335425638,1724221844669,-500.0,0.00016488,5]
[335425639,1724221844679,-1194.04088155,0.00016488,5]
[335425640,1724221844688,-2388.45,0.00016488,5]
[335425641,1724221844696,-151.0,0.00016488,2]
[335425642,1724221844705,-151.0,0.00016488,2]
[335425643,1724221844715,-151.0,0.00016488,2]
[335425644,1724221844724,-151.0,0.00016488,2]
[335425645,1724221844733,-151.0,0.00016488,2]
[335425646,1724221844742,-151.0,0.00016488,2]
[335425647,1724221844751,-151.0,0.00016488,2]
[335425648,1724221844761,-252.559736,0.00016488,2]
[335425649,1724221844770,-152.396668,0.00016488,2]
[335425650,1724221844779,-151.0,0.00016488,2]
[335425651,1724221844788,-151.0,0.00016488,2]
[335425652,1724221844798,-151.0,0.00016488,2]
[335425653,1724221844807,-151.0,0.00016488,2]
[335425654,1724221844816,-151.0,0.00016488,2]
[335425655,1724221844825,-280.061239,0.00016488,2]
[335425656,1724221844835,-151.0,0.00016488,2]
[335425657,1724221844844,-151.0,0.00016488,2]
[335425658,1724221844853,-151.566318,0.00016488,2]
[335425659,1724221844862,-647.283939,0.00016488,2]
[335425660,1724221844872,-647.283939,0.00016488,2]
[335425661,1724221844883,-647.283939,0.00016488,2]
[335425662,1724221844892,-647.283939,0.00016488,2]
[335425663,1724221844901,-647.283939,0.00016488,2]
[335425664,1724221844911,-647.283939,0.00016488,2]
[335425665,1724221844920,-647.283939,0.00016488,2]
[335425666,1724221844929,-647.283939,0.00016488,2]
[335425667,1724221844939,-647.283939,0.00016488,2]
[335425668,1724221844948,-647.283939,0.00016488,2]
[335425669,1724221844957,-151.0,0.00016488,2]
[335425670,1724221844966,-151.0,0.00016488,2]
[335425671,1724221844975,-151.0,0.00016488,2]
[335425672,1724221844984,-151.0,0.00016488,2]
[335425673,1724221844994,-151.0,0.00016488,2]
[335425674,1724221845003,-256.765186,0.00016488,2]
[335425675,1724221845013,-2600.41,0.00016488,5]
[335425676,1724221845022,-2600.41,0.00016488,5]
[335425677,1724221845032,-151.0,0.00016488,2]
[335425678,1724221845041,-151.0,0.00016488,2]
[335425679,1724221845050,-151.0,0.00016488,2]
[335425680,1724221845059,-151.0,0.00016488,2]
[335425681,1724221845068,-151.0,0.00016488,2]
[335425682,1724221845077,-151.0,0.00016488,2]
[335425683,1724221845087,-1478.18,0.00016488,5]
[335425684,1724221845096,-1478.18,0.00016488,5]
[335425685,1724221845104,-520.501741,0.00016488,2]
[335425686,1724221845114,-520.501741,0.00016488,2]
[335425687,1724221845123,-520.501741,0.00016488,2]
[335425688,1724221845132,-520.501741,0.00016488,2]
[335425689,1724221845141,-520.501741,0.00016488,2]
[335425690,1724221845151,-520.501741,0.00016488,2]
[335425691,1724221845160,-153.575797,0.00016488,2]
[335425692,1724221845169,-709.93,0.00016488,5]
[335425693,1724221845178,-709.93,0.00016488,5]
[335425694,1724221845187,-520.501741,0.00016488,2]
[335425695,1724221845195,-520.501741,0.00016488,2]
[335425696,1724221845204,-520.501741,0.00016488,2]
[335425697,1724221845214,-520.501741,0.00016488,2]
[335425698,1724221845223,-520.501741,0.00016488,2]
[335425699,1724221845232,-520.501741,0.00016488,2]
[335425700,1724221845241,-6423.44,0.00016488,5]
[335425701,1724221845252,-6423.44,0.00016488,5]
[335425702,1724221845262,-6423.44,0.00016488,5]
[335425703,1724221845271,-261.07152,0.00016488,2]
[335425704,1724221845280,-261.07152,0.00016488,2]
[335425705,1724221845291,-261.07152,0.00016488,2]
[335425706,1724221845300,-261.07152,0.00016488,2]
[335425707,1724221845311,-151.0,0.00016488,2]
[335425708,1724221845321,-261.07152,0.00016488,2]
[335425709,1724221845332,-151.0,0.00016488,2]
[335425710,1724221845344,-261.07152,0.00016488,2]
[335425711,1724221845354,-151.0,0.00016488,2]
[335425712,1724221845363,-152.188684,0.00016488,2]
[335425713,1724221845375,-24174.05,0.00016488,5]
[335425714,1724221845385,-24174.05,0.00016488,5]
[335425715,1724221845394,-261.07152,0.00016488,2]
[335425716,1724221845403,-261.07152,0.00016488,2]
[335425717,1724221845413,-261.07152,0.00016488,2]
[335425718,1724221845422,-261.07152,0.00016488,2]
[335425719,1724221845433,-261.07152,0.00016488,2]
[335425720,1724221845442,-261.07152,0.00016488,2]
[335425721,1724221845452,-500.0,0.00016488,5]
[335425722,1724221845464,-2246.64,0.00016488,5]
[335425723,1724221845474,-2246.64,0.00016488,5]
[335425724,1724221845485,-2246.64,0.00016488,5]
[335425725,1724221845496,-2577.29,0.00016488,5]
[335425726,1724221845506,-2577.29,0.00016488,5]
[335425727,1724221845515,-6503.45,0.00016488,5]
[335425728,1724221845525,-6503.45,0.00016488,5]
[335425729,1724221845535,-6503.45,0.00016488,5]
[335425730,1724221845545,-500.0,0.00016488,5]
[335425731,1724221845553,-2139.595495,0.00016488,2]
[335425732,1724221845562,-2139.595495,0.00016488,2]
[335425733,1724221845571,-2139.595495,0.00016488,2]
[335425734,1724221845580,-2139.595495,0.00016488,2]
[335425735,1724221845589,-2139.595495,0.00016488,2]
[335425736,1724221845598,-2139.595495,0.00016488,2]
[335425737,1724221845607,-2139.595495,0.00016488,2]
[335425738,1724221845617,-2139.595495,0.00016488,2]
[335425739,1724221845626,-2139.595495,0.00016488,2]
[335425740,1724221845635,-2139.595495,0.00016488,2]
[335425741,1724221845645,-2139.595495,0.00016488,2]
[335425742,1724221845654,-1561.68,0.00016488,5]
[335425743,1724221845663,-1561.68,0.00016488,5]
[335425744,1724221845672,-2139.595495,0.00016488,2]
[335425745,1724221845681,-1561.68,0.00016488,5]
[335425746,1724221845690,-1937.74,0.00016488,5]
[335425747,1724221845699,-1937.74,0.00016488,5]
[335425748,1724221845708,-625.54,0.00016488,5]
[335425749,1724221845717,-625.54,0.00016488,5]
[335425750,1724221845728,-3125.69,0.00016488,5]
[335425751,1724221845738,-3125.69,0.00016488,5]
[335425752,1724221845749,-151.0,0.00016488,2]
[335425753,1724221845760,-3125.69,0.00016488,5]
[335425754,1724221845769,-151.0,0.00016488,2]
[335425755,1724221845778,-151.0,0.00016488,2]
[335425756,1724221845918,-151.0,0.00016488,2]
[335425757,1724221845928,-177.705994,0.00016488,2]
[335425758,1724221845938,-151.0,0.00016488,2]
[335425759,1724221845947,-151.0,0.00016488,2]
[335425760,1724221845971,-157.582512,0.00016488,2]
[335425761,1724221845980,-363.668635,0.00016488,2]
[335425762,1724221845990,-363.668635,0.00016488,2]
[335425763,1724221845999,-363.668635,0.00016488,2]
[335425764,1724221846008,-363.668635,0.00016488,2]
[335425765,1724221846017,-363.668635,0.00016488,2]
[335425766,1724221846027,-2031.32,0.00016488,5]
[335425767,1724221846036,-363.668635,0.00016488,2]
[335425768,1724221846045,-2031.32,0.00016488,5]
[335425769,1724221846054,-363.668635,0.00016488,2]
[335425770,1724221846064,-363.668635,0.00016488,2]
[335425771,1724221846073,-363.668635,0.00016488,2]
[335425772,1724221846082,-363.668635,0.00016488,2]
[335425773,1724221846092,-363.668635,0.00016488,2]
[335425774,1724221846101,-363.668637,0.00016488,2]
[335425775,1724221846110,-500.0,0.00016488,5]
[335425776,1724221846119,-505.13285512,0.00016488,5]
[335425777,1724221846128,-1033.63,0.00016488,5]
[335425778,1724221846137,-1033.63,0.00016488,5]
[335425779,1724221846147,-1033.63,0.00016488,5]
[335425780,1724221846156,-500.0,0.00016488,5]
[335425781,1724221846165,-1347.23,0.00016488,5]
[335425782,1724221846174,-1347.23,0.00016488,5]
[335425783,1724221846183,-1347.23,0.00016488,5]
[335425784,1724221846192,-500.0,0.00016488,5]
[335425785,1724221846201,-500.0,0.00016488,5]
[335425786,1724221846210,-500.0,0.00016488,5]
[335425787,1724221846219,-500.0,0.00016488,5]
[335425788,1724221846228,-1779.64,0.00016488,5]
[335425789,1724221846238,-1779.64,0.00016488,5]
[335425790,1724221846249,-1779.64,0.00016488,5]
[335425791,1724221846259,-500.0,0.00016488,5]
[335425792,1724221846268,-500.0,0.00016488,5]
[335425793,1724221846277,-500.0,0.00016488,5]
[335425795,1724221846286,-500.0,0.00016488,5]
[335425796,1724221846297,-500.0,0.00016488,5]
[335425797,1724221846305,-1442.4,0.00016488,5]
[335425798,1724221846315,-1442.4,0.00016488,5]
[335425799,1724221846324,-1442.4,0.00016488,5]
[335425800,1724221846334,-840.87,0.00016488,5]
[335425801,1724221846344,-840.87,0.00016488,5]
[335425802,1724221846354,-840.87,0.00016488,5]
[335425803,1724221846365,-500.0,0.00016488,5]
[335425804,1724221846375,-500.0,0.00016488,5]
[335425805,1724221846386,-500.0,0.00016488,5]
[335425806,1724221846396,-500.0,0.00016488,5]
[335425807,1724221846406,-500.0,0.00016488,5]
[335425808,1724221846416,-713.76,0.00016488,5]
[335425809,1724221846427,-713.76,0.00016488,5]
[335425810,1724221846438,-713.76,0.00016488,5]
[335425811,1724221846449,-1186.56,0.00016488,5]
[335425812,1724221846459,-1186.56,0.00016488,5]
[335425813,1724221846469,-1186.56,0.00016488,5]
[335425814,1724221846480,-2952.613592,0.00016488,2]
[335425815,1724221846491,-2952.613592,0.00016488,2]
[335425816,1724221846501,-2952.613592,0.00016488,2]
[335425817,1724221846512,-2952.6136,0.00016488,2]
[335425818,1724221846521,-500.0,0.00016488,5]
[335425819,1724221846531,-500.0,0.00016488,5]
[335425820,1724221846540,-500.0,0.00016488,5]
[335425821,1724221846550,-500.0,0.00016488,5]
[335425822,1724221846561,-500.0,0.00016488,5]
[335425823,1724221846571,-500.0,0.00016488,5]
[335425824,1724221846582,-500.0,0.00016488,5]
[335425825,1724221846592,-500.0,0.00016488,5]
[335425826,1724221846603,-238.471029,0.00016488,2]
[335425827,1724221846613,-238.471029,0.00016488,2]
[335425828,1724221846623,-2268.589239,0.00016488,2]
[335425829,1724221846632,-835.96,0.00016488,5]
[335425830,1724221846642,-2268.589239,0.00016488,2]
[335425831,1724221846652,-835.96,0.00016488,5]
[335425832,1724221846663,-835.96,0.00016488,5]
[335425833,1724221846673,-500.0,0.00016488,5]
[335425834,1724221846684,-238.471029,0.00016488,2]
[335425835,1724221846695,-500.0,0.00016488,5]
[335425836,1724221846706,-238.471032,0.00016488,2]
[335425837,1724221846716,-500.0,0.00016488,5]
[335425838,1724221846726,-2268.589239,0.00016488,2]
[335425839,1724221846736,-2268.589236,0.00016488,2]
[335425840,1724221846746,-1064.01,0.00016488,5]
[335425841,1724221846755,-1064.01,0.00016488,5]
[335425842,1724221846765,-1064.01,0.00016488,5]
[335425843,1724221846774,-151.0,0.00016488,2]
[335425844,1724221846783,-10000.0,0.00016488,2]
[335425845,1724221846793,-1301.52,0.00016488,5]
[335425846,1724221846803,-151.0,0.00016488,2]
[335425847,1724221846812,-10000.0,0.00016488,2]
[335425848,1724221846823,-1301.52,0.00016488,5]
[335425849,1724221846834,-152.319297,0.00016488,2]
[335425850,1724221846843,-1301.52,0.00016488,5]
[335425851,1724221846853,-1402.33441272,0.00016488,2]
[335425852,1724221846871,-822.33658662,0.00016488,2]
[335425853,1724221846894,-7775.32900066,0.00016488,2]
[335425854,1724221846904,-10000.0,0.00016488,2]
[335425855,1724221846913,-10000.0,0.00016488,2]
[335425856,1724221846922,-10000.0,0.00016488,2]
[335425857,1724221846931,-151.0,0.00016488,2]
[335425858,1724221846941,-151.0,0.00016488,2]
[335425859,1724221846950,-151.0,0.00016488,2]
[335425860,1724221846959,-151.0,0.00016488,2]
[335425861,1724221846968,-151.0,0.00016488,2]
[335425862,1724221846977,-151.0,0.00016488,2]
[335425863,1724221846987,-500.0,0.00016488,5]
[335425864,1724221846996,-155.559711,0.00016488,2]
[335425865,1724221847005,-500.0,0.00016488,5]
[335425866,1724221847015,-500.0,0.00016488,5]
[335425867,1724221847024,-500.0,0.00016488,5]
[335425868,1724221847033,-212.19132659,0.00016488,5]
[335425869,1724221847042,-711.0,0.00016488,5]
[335425870,1724221847051,-711.0,0.00016488,5]
[335425871,1724221847061,-711.0,0.00016488,5]
[335425872,1724221847070,-1638.12,0.00016488,5]
[335425873,1724221847083,-1638.12,0.00016488,5]
[335425874,1724221847092,-1638.12,0.00016488,5]
[335425875,1724221847101,-500.0,0.00016488,5]
[335425876,1724221847110,-500.0,0.00016488,5]
[335425877,1724221847119,-2912.65,0.00016488,5]
[335425878,1724221847130,-2912.65,0.00016488,5]
[335425879,1724221847140,-2912.65,0.00016488,5]
[335425880,1724221847148,-196.381651,0.00016488,2]
[335425881,1724221847158,-196.381651,0.00016488,2]
[335425882,1724221847169,-196.381651,0.00016488,2]
[335425883,1724221847179,-196.381651,0.00016488,2]
[335425884,1724221847189,-196.381651,0.00016488,2]
[335425885,1724221847199,-196.381651,0.00016488,2]
[335425886,1724221847210,-500.0,0.00016488,5]
[335425887,1724221847222,-196.381651,0.00016488,2]
[335425888,1724221847234,-500.0,0.00016488,5]
[335425889,1724221847245,-151.0,0.00016488,2]
[335425890,1724221847258,-151.0,0.00016488,2]
[335425891,1724221847267,-206.690248,0.00016488,2]
[335425892,1724221847276,-196.381651,0.00016488,2]
[335425893,1724221847286,-196.381651,0.00016488,2]
[335425894,1724221847297,-196.381651,0.00016488,2]
[335425895,1724221847307,-196.381651,0.00016488,2]
[335425896,1724221847317,-196.381651,0.00016488,2]
[335425897,1724221847329,-196.381651,0.00016488,2]
[335425898,1724221847339,-196.381652,0.00016488,2]
[335425899,1724221847349,-1097.05,0.00016488,5]
[335425900,1724221847361,-1097.05,0.00016488,5]
[335425901,1724221847371,-1097.05,0.00016488,5]
[335425902,1724221847382,-500.0,0.00016488,5]
[335425903,1724221847392,-500.0,0.00016488,5]
[335425904,1724221847402,-1155.55,0.00016488,5]
[335425905,1724221847413,-1155.55,0.00016488,5]
[335425906,1724221847422,-1155.55,0.00016488,5]
[335425907,1724221847433,-500.0,0.00016488,5]
[335425908,1724221847443,-500.0,0.00016488,5]
[335425909,1724221847452,-500.0,0.00016488,5]
[335425910,1724221847462,-938.87,0.00016488,5]
[335425911,1724221847472,-938.87,0.00016488,5]
[335425912,1724221847482,-1142.86,0.00016488,5]
[335425913,1724221847491,-1142.86,0.00016488,5]
[335425914,1724221847501,-1142.86,0.00016488,5]
[335425915,1724221847512,-500.0,0.00016488,5]
[335425916,1724221847521,-500.0,0.00016488,5]
[335425917,1724221847531,-1273.13,0.00016488,5]
[335425918,1724221847540,-1273.13,0.00016488,5]
[335425919,1724221847549,-1273.13,0.00016488,5]
[335425920,1724221847558,-500.0,0.00016488,5]
[335425921,1724221847567,-1533.86,0.00016488,5]
[335425922,1724221847577,-500.0,0.00016488,5]
[335425923,1724221847586,-500.0,0.00016488,5]
[335425924,1724221847595,-1533.86,0.00016488,5]
[335425925,1724221847605,-1533.86,0.00016488,5]
[335425926,1724221847614,-500.0,0.00016488,5]
[335425927,1724221847623,-500.0,0.00016488,5]
[335425928,1724221847632,-500.0,0.00016488,5]
[335425929,1724221847641,-2008.56,0.00016488,5]
[335425930,1724221847651,-2008.56,0.00016488,5]
[335425931,1724221847660,-646.06,0.00016488,5]
[335425932,1724221847669,-2008.56,0.00016488,5]
[335425933,1724221847678,-915.82,0.00016488,5]
[335425934,1724221847687,-915.82,0.00016488,5]
[335425935,1724221847697,-915.82,0.00016488,5]
[335425936,1724221847706,-500.0,0.00016488,5]
[335425937,1724221847715,-500.0,0.00016488,5]
[335425938,1724221847724,-780.24,0.00016488,5]
[335425939,1724221847733,-780.24,0.00016488,5]
[335425940,1724221847743,-780.24,0.00016488,5]
[335425941,1724221847753,-967.56,0.00016488,5]
[335425942,1724221847765,-967.56,0.00016488,5]
[335425943,1724221847776,-967.56,0.00016488,5]
[335425944,1724221847785,-530.9603271,0.00016489,5]
[335425945,1724221847794,-527.12444103,0.00016489,5]
[335425946,1724221847804,-548.35358025,0.00016489,5]
[335425947,1724221847813,-532.30824008,0.00016489,5]
[335425948,1724221847823,-531.6654105,0.00016489,5]
[335425949,1724221847832,-525.88864014,0.00016489,5]
[335425950,1724221847841,-627.85408128,0.00016489,5]
[335425951,1724221847851,-532.53515367,0.00016489,5]
[335425952,1724221847860,-627.77015583,0.00016489,5]
[335425953,1724221847869,-518.3062769,0.00016489,5]
[335425954,1724221847879,-523.71901228,0.00016489,5]
[335425955,1724221847889,-552.39824926,0.00016489,5]
[335425956,1724221847898,-529.9793721,0.00016489,5]
[335425957,1724221847908,-543.26475083,0.00016489,5]
[335425958,1724221847918,-557.86800872,0.00016489,5]
[335425959,1724221847927,-522.58660928,0.00016489,5]
[335425960,1724221847936,-532.4932711,0.00016489,5]
[335425961,1724221847946,-536.87524553,0.00016489,5]
[335425962,1724221847956,-541.28570338,0.00016489,5]
[335425963,1724221847965,-500.0,0.00016489,5]
[335425964,1724221847975,-170.19797345,0.00016489,5]
[335425965,1724221847984,-539.68246956,0.00016489,5]
[335425966,1724221847994,-560.23505973,0.00016489,5]
[335425967,1724221848003,-647.31296536,0.00016489,5]
[335425968,1724221848014,-519.87994502,0.00016489,5]
[335425969,1724221848023,-528.77352444,0.00016489,5]
[335425970,1724221848033,-528.99788452,0.00016489,5]
[335425971,1724221848042,-530.5297988,0.00016489,5]
[335425972,1724221848051,-543.20396417,0.00016489,5]
[335425973,1724221848060,-529.79335145,0.00016489,5]
[335425974,1724221848069,-524.99861042,0.00016489,5]
[335425975,1724221848079,-500.0,0.00016489,5]
[335425976,1724221848088,-195.13225898,0.00016489,5]
[335425977,1724221848098,-543.7564964,0.00016489,5]
[335425978,1724221848107,-500.0,0.00016489,5]
[335425979,1724221848117,-208.92103587,0.00016489,5]
[335425980,1724221848127,-534.47086945,0.00016489,5]
[335425981,1724221848136,-500.0,0.00016489,5]
[335425982,1724221848145,-150.5305581,0.00016489,5]
[335425983,1724221848155,-521.05386782,0.00016489,5]
[335425984,1724221848165,-528.85705805,0.00016489,5]
[335425985,1724221848174,-621.14910797,0.00016489,5]
[335425986,1724221848183,-554.04126933,0.00016489,5]
[335425987,1724221848193,-553.46376029,0.00016489,5]
[335425988,1724221848202,-534.62920286,0.00016489,5]
[335425989,1724221848211,-552.44305963,0.00016489,5]
[335425990,1724221848221,-512.7324012,0.00016489,5]
[335425991,1724221848230,-527.92672714,0.00016489,5]
[335425992,1724221848239,-522.64245753,0.00016489,5]
[335425993,1724221848251,-570.15253491,0.00016489,5]
[335425994,1724221848262,-511.32166974,0.00016489,5]
[335425995,1724221848272,-510.80142343,0.00016489,5]
[335425996,1724221848281,-572.93092995,0.00016489,5]
[335425997,1724221848291,-500.0,0.00016489,5]
[335425998,1724221848300,-180.78691657,0.00016489,5]
[335425999,1724221848311,-500.0,0.00016489,5]
[335426000,1724221848320,-500.0,0.00016489,5]
[335426001,1724221848334,-500.0,0.00016489,5]
[335426002,1724221848345,-519.30827108,0.00016489,5]
[335426003,1724221848355,-524.75886507,0.00016489,5]
[335426004,1724221848364,-500.0,0.00016489,5]
[335426005,1724221848374,-524.12659165,0.00016489,5]
[335426006,1724221848383,-500.0,0.00016489,5]
[335426007,1724221848393,-500.0,0.00016489,5]
[335426008,1724221848402,-500.0,0.00016489,5]
[335426009,1724221848411,-514.61808298,0.00016489,5]
[335426010,1724221848420,-500.0,0.00016489,5]
[335426011,1724221848429,-500.0,0.00016489,5]
[335426012,1724221848438,-500.0,0.00016489,5]
[335426013,1724221848448,-500.0,0.00016489,5]
[335426014,1724221848457,-500.0,0.00016489,5]
[335426015,1724221848466,-500.0,0.00016489,5]
[335426016,1724221848476,-151.0,0.00016489,2]
[335426017,1724221848485,-151.794153,0.00016489,2]
[335426018,1724221848495,-151.0,0.00016489,2]